[Event "21st Alekhine FIDE 2017"]
[Site "Voronezh"]
[Date "2017.06.19"]
[Round "8"]
[White "Lepaev, Andrey"]
[Black "Khajrutdinov, Ildar"]
[Result "1-0"]
[ECO "E06"]
[WhiteElo "2059"]
[BlackElo "2087"]
[Annotator "NA RC"]
[PlyCount "80"]
[EventDate "2017.??.??"]
[EventType "swiss"]
[EventCountry "RUS"]
[SourceTitle "playchess.com"]
[Source "ChessBase"]
[SourceQuality "1"]
[TimeControl "40/5400+30:1800+30"]

{[%evp 17,58,14,12,21,26,14,11,-7,6,0,29,19,18,-13,-9,-10,-9,0,0,-10,0,0,0,0,0,0,0,0,0,-6,0,0,0,-6,-6,-6,-6,-4,-6,-6,-6,-7,-1]} 1. d4 Nf6 2. c4 e6 3. g3 d5 4. Nf3 Be7 5. Bg2 O-O 6. O-O dxc4 7. Qc2 a6 8. a4 Bd7 9. Qxc4 Bc6 10. Bf4 Nbd7 11. Nc3 Nb6 {E05: Open Catalan: 5 Nf3 Be7} (11... Bd6 12. e3 Nb6 13. Qb3 Bxf4 14. gxf4 a5 15. Ne5 Bxg2 16. Kxg2 Nbd5 17. Rg1 Rc8 18. Rac1 Nb4 19. Qc4 {0-1 (63) Eljanov,P (2751)-Kramnik,V (2811) Shamkir 2017}) 12. Qd3 {LiveBook: 16 Games} Nbd5 13. Nxd5 Bxd5 14. Rac1 Rc8 15. Nd2 $146 (15. Ne5 $5 {[%cal Re2e4]} Bxg2 16. Kxg2 $11) ({Predecessor:} 15. Rfe1 Be4 16. Qb3 {½-½ (16) Reh,P (2105)-Kloss,T Germany 1995}) 15... Bxg2 16. Kxg2 c5 17. dxc5 Qxd3 18. exd3 Bxc5 19. Ne4 Nxe4 20. dxe4 Bd4 21. Bd6 Rfd8 22. b3 f6 23. Ba3 Kf7 24. Rxc8 Rxc8 25. Rc1 Rxc1 26. Bxc1 f5 27. exf5 exf5 28. Kf3 Ke6 29. Be3 Bf6 $11 30. Ke2 Kd5 31. Kd3 g6 32. h3 h5 33. f3 Be5 34. g4 fxg4 35. fxg4 hxg4 36. hxg4 Bf6 37. Bf2 Be5 38. Be3 Bf6 39. Bg1 Be5 40. Be3 Bf6 {Ke4+} 1-0

[Event "21st Alekhine FIDE 2017"]
[Site "Voronezh"]
[Date "2017.06.19"]
[Round "8"]
[White "Chernov, Vladimir S"]
[Black "Moiseenko, Andrey"]
[Result "0-1"]
[ECO "A59"]
[WhiteElo "2045"]
[BlackElo "2010"]
[Annotator "NA RC"]
[PlyCount "60"]
[EventDate "2017.??.??"]
[EventType "swiss"]
[EventCountry "RUS"]
[SourceTitle "playchess.com"]
[Source "ChessBase"]
[SourceQuality "1"]
[TimeControl "40/5400+30:1800+30"]

{[%evp 9,60,33,82,72,87,32767,32767,32767,32767,70,70,57,71,53,54,18,73,67,67,-25,85,42,63,25,54,4,12,64,0,-67,-68,-65,-70,-66,-59,-334,-140,-753,-681,-720,-863,-713,-801,-1031,-1122,-2819,-5056,-29989,-29990,-5160,-29992,-29998,-29999]} 1. d4 Nf6 {[%emt 0:00:20]} 2. c4 {[%emt 0:00:00]} c5 {[%emt 0:00:02]} 3. d5 {[%emt 0:00:00]} b5 {[%emt 0:00:02]} 4. cxb5 {[%emt 0:00:00]} a6 {[%emt 0:00:02]} 5. bxa6 {[%emt 0:00:32]} g6 {[%emt 0:00:06]} (5... e6 $11 {keeps the balance.}) 6. Nc3 {[%emt 0:00:08]} Bxa6 {[%emt 0:00:05]} 7. e4 {[%emt 0:00:51]} Bxf1 {[%emt 0:00:07]} 8. Kxf1 {[%emt 0:00:01]} d6 {[%emt 0:00:19]} 9. g3 {[%emt 0:01:42]} Bg7 {[%emt 0:00:06]} 10. Kg2 {[%emt 0:00:38]} O-O {[%emt 0:00:05]} 11. Nge2 {[%emt 0:01:20] LiveBook: 57 Games} Nbd7 {[%emt 0:00:16]} 12. Re1 {[%emt 0:01:05] A59: Benko/Volga Gambit: White castles by hand} (12. Qc2 Ra6 13. Rd1 Qa8 14. Rb1 e6 15. Nf4 exd5 16. Nfxd5 Nxd5 17. Nxd5 Rxa2 18. Ne7+ Kh8 19. Rxd6 Ne5 20. Rd5 {½-½ (34) Oms Pallisse,J (2528)-Alsina Leal,D (2527) Barcelona 2010}) 12... Ra6 {[%emt 0:00:34]} 13. Qc2 {[%emt 0:02:46]} Qa8 {[%emt 0:00:09]} 14. b3 $146 {[%emt 0:03:02]} (14. f3 $16) ({Predecessor:} 14. Bf4 e6 15. Rad1 exd5 16. exd5 Ng4 17. h3 Nge5 18. b3 Rb8 19. Bxe5 Nxe5 {0-1 (48) Zimin,I (2072)-Gutov,A (2406) Kemerovo 2011}) 14... Rb8 {[%emt 0:02:33]} (14... e6 $11) 15. Bb2 {[%emt 0:00:53]} Ne5 {[%emt 0:08:54]} 16. f4 {[%emt 0:11:59]} Neg4 {[%emt 0:00:05]} 17. Ng1 {[%emt 0:01:17]} c4 $1 {[%emt 0:06:27]} 18. bxc4 {[%emt 0:11:05]} Qa7 {[%emt 0:00:11]} 19. Nd1 {[%emt 0:12:25] [#]} (19. e5 $14 dxe5 20. fxe5) 19... Rxb2 $1 {[%emt 0:08:22]} 20. Nxb2 {[%emt 0:01:57]} Ne3+ {[%emt 0:00:25]} 21. Rxe3 {[%emt 0:00:02]} Qxe3 {[%emt 0:00:01]} 22. Nf3 $2 {[%emt 0:06:50]} ({White should try} 22. a4 $15) 22... Qxe4 {[%emt 0:04:32]} (22... Ra3 $19 {is more deadly.} 23. Rf1 Rxa2) 23. Qd2 $2 {[%emt 0:16:57]} (23. Qd3 $17) 23... Ra3 {[%emt 0:07:17]} 24. Rf1 {[%emt 0:00:29]} Ng4 {[%emt 0:01:46]} 25. Nd1 {[%emt 0:04:59]} Qxc4 {[%emt 0:01:39]} 26. Qe1 {[%emt 0:05:19]} Rxa2+ {[%emt 0:02:38]} 27. Kh3 {[%emt 0:02:23]} Qxd5 {[%emt 0:01:36]} 28. Qxe7 {[%emt 0:00:29]} Bf6 {[%emt 0:02:11]} 29. Qe8+ {[%emt 0:00:47]} Kg7 {[%emt 0:00:04]} 30. Ng5 {[%emt 0:01:18]} Rxh2+ {[%emt 0:00:27] Qc8} 0-1

[Event "21st Alekhine FIDE 2017"]
[Site "Voronezh"]
[Date "2017.06.19"]
[Round "8"]
[White "Rozmetov, Aybek"]
[Black "Novikov, Sergey D"]
[Result "0-1"]
[ECO "D30"]
[WhiteElo "1978"]
[BlackElo "2061"]
[Annotator "NA RC"]
[PlyCount "75"]
[EventDate "2017.??.??"]
[EventType "swiss"]
[EventCountry "RUS"]
[SourceTitle "playchess.com"]
[Source "ChessBase"]
[SourceQuality "1"]
[TimeControl "40/5400+30:1800+30"]

{[%evp 16,74,17,9,35,34,39,0,0,-20,22,0,13,14,23,24,32,9,10,10,7,17,17,14,30,18,25,47,33,39,11,29,21,34,33,10,23,18,18,0,17,5,15,-1,32767,32767,32767,32767,-51,-419,-462,32767,32767,32767,32767,-1206,-1472,-29993,-29994,-29994,-1193]} 1. d4 {[%emt 0:02:17]} d5 {[%emt 0:00:01]} 2. c4 {[%emt 0:00:15]} e6 {[%emt 0:00:05]} 3. Nf3 {[%emt 0:00:09]} Nf6 {[%emt 0:00:04]} 4. g3 {[%emt 0:00:08]} dxc4 {[%emt 0:00:02]} 5. Qa4+ {[%emt 0:00:58]} Bd7 {[%emt 0:00:08]} 6. Qxc4 {[%emt 0:00:06]} c5 {[%emt 0:02:15]} 7. Bg2 {[%emt 0:00:55]} Bc6 {[%emt 0:00:03]} 8. O-O {[%emt 0:00:43] E04: Open Catalan: 5 Nf3} Bd5 {[%emt 0:12:42]} (8... Nbd7 9. Nc3 Rc8 10. Be3 b5 11. Qd3 b4 12. Nb1 c4 13. Qc2 Be7 14. a3 b3 15. Qc1 Nb6 {0-1 (34) Radjabov,T (2745)-Anand,V (2783) Stavanger 2013}) 9. Qc2 {[%emt 0:09:11]} cxd4 {[%emt 0:19:32]} 10. Rd1 {[%emt 0:01:45]} Nbd7 {[%emt 0:04:55]} 11. Rxd4 $146 {[%emt 0:03:20]} ({Predecessor:} 11. Bg5 Rc8 12. Qa4 Rc4 13. Bxf6 gxf6 14. Qb3 a6 15. Nxd4 Rxd4 16. Bxd5 Rxd1+ 17. Qxd1 exd5 18. Qxd5 {0-1 (36) Godoy,C (2315)-Comp MChess Pro 486 Villa Ballester 1993}) 11... Bc5 {[%emt 0:01:40]} 12. Rd1 {[%emt 0:00:20]} Qb6 {[%emt 0:06:33]} 13. e3 {[%emt 0:04:01]} O-O {[%emt 0:04:15]} 14. Nc3 {[%emt 0:00:20]} Rac8 {[%emt 0:01:01]} 15. Nxd5 {[%emt 0:06:30]} Nxd5 {[%emt 0:00:01]} 16. Ng5 {[%emt 0:10:10]} N7f6 {[%emt 0:02:36]} 17. Qe2 {[%emt 0:02:52]} Rcd8 {[%emt 0:04:49]} 18. Ne4 {[%emt 0:14:08]} Nxe4 {[%emt 0:03:20]} 19. Bxe4 {[%emt 0:00:07]} Nf6 {[%emt 0:00:05]} 20. Bd3 {[%emt 0:03:23]} e5 {[%emt 0:02:50]} 21. b3 {[%emt 0:06:09]} e4 {[%emt 0:07:03]} 22. Bc4 {[%emt 0:01:15]} Rxd1+ {[%emt 0:00:07]} 23. Qxd1 {[%emt 0:00:08]} Rd8 {[%emt 0:00:40]} 24. Qe2 {[%emt 0:03:18]} Bb4 {[%emt 0:03:47]} 25. a3 {[%emt 0:03:52]} Bc3 {[%emt 0:08:58]} 26. Ra2 {[%emt 0:01:14]} Qa5 {[%emt 0:06:15]} 27. b4 {[%emt 0:02:49]} Qe5 {[%emt 0:02:04]} 28. Rc2 {[%emt 0:02:00]} h5 {[%emt 0:01:06]} 29. h4 {[%emt 0:04:41]} Ng4 {[%emt 0:03:31]} 30. Kg2 {[%emt 0:02:19]} Qf6 {[%emt 0:01:33]} 31. Bb3 {[%emt 0:04:31]} Rd3 {[%emt 0:01:20]} 32. Bc4 $2 {[%emt 0:01:03]} (32. f3 $1 $15 exf3+ 33. Qxf3) 32... Ne5 {[%emt 0:00:12]} 33. Ba2 {[%emt 0:08:37]} Qf3+ {[%emt 0:01:43]} 34. Qxf3 {[%emt 0:01:33]} exf3+ {[%emt 0:00:01]} 35. Kh3 {[%emt 0:01:17]} Ng4 {[%emt 0:01:16]} 36. Bb2 {[%emt 0:00:52]} Rd1 {[%emt 0:00:00]} 37. Rc1 {[%emt 0:00:38]} Bxb2 $19 {[%emt 0:00:01]} (37... Nxf2+ $142 38. Kh2 Ng4+ 39. Kh3 Rd2 40. Rh1 Rg2 41. Bxf7+ Kxf7 42. Bxc3 Nf2#) 38. Rxd1 0-1

[Event "21st Alekhine FIDE 2017"]
[Site "Voronezh"]
[Date "2017.06.19"]
[Round "8"]
[White "Mezhov, Dmitriy"]
[Black "Geranichev, Mikhail"]
[Result "1-0"]
[ECO "D80"]
[WhiteElo "1809"]
[BlackElo "2076"]
[Annotator "NA RC"]
[PlyCount "117"]
[EventDate "2017.??.??"]
[EventType "swiss"]
[EventCountry "RUS"]
[SourceTitle "playchess.com"]
[Source "ChessBase"]
[SourceQuality "1"]
[TimeControl "40/5400+30:1800+30"]

{[%evp 17,117,44,52,42,61,65,63,57,118,52,54,45,93,87,100,100,103,86,98,104,105,112,129,120,122,115,120,127,133,114,149,156,181,199,231,144,166,175,214,225,317,202,188,202,229,187,187,213,184,147,147,147,146,141,144,151,203,32767,32767,32767,32767,32767,32767,32767,32767,220,229,174,263,32767,32767,32767,32767,429,430,457,409,496,394,597,553,680,984,1457,862,1688,2025,1662,2291,5065,5093,12846,29981,12847,29984,29984,29987,29988,29988,29989,12848,29990]} 1. d4 {[%emt 0:00:00]} Nf6 {[%emt 0:01:32]} 2. c4 {[%emt 0:00:00]} g6 {[%emt 0:00:05]} 3. Nc3 {[%emt 0:00:00]} d5 {[%emt 0:00:07]} 4. Bg5 {[%emt 0:00:00]} c6 {[%emt 0:00:28]} 5. Bxf6 {[%emt 0:00:00] D80: Grünfeld: Unusual White 4th moves and 4 Bg5} exf6 {[%emt 0:00:19]} 6. cxd5 {[%emt 0:00:00]} cxd5 {[%emt 0:00:29]} 7. Qb3 {[%emt 0:00:02]} Nc6 {[%emt 0:00:16]} 8. e3 {[%emt 0:00:05]} Bb4 {[%emt 0:02:36]} 9. Nge2 {[%emt 0:06:09]} O-O {[%emt 0:01:21]} 10. a3 {[%emt 0:00:27]} Bxc3+ $146 {[%emt 0:00:42]} ({Predecessor:} 10... Qa5 11. Rc1 Bxc3+ 12. Nxc3 Ne7 {1-0 (51) Andersen,F (2275)-Momme,J Aalborg 1995}) 11. Nxc3 {[%emt 0:00:04]} Ne7 {[%emt 0:01:48]} 12. Be2 {[%emt 0:00:25]} Be6 {[%emt 0:00:07]} (12... Rb8 $14) 13. O-O {[%emt 0:00:21]} (13. Qxb7 $16 a5 14. Qb3) 13... Rb8 {[%emt 0:01:00]} 14. Bf3 {[%emt 0:01:19]} b5 {[%emt 0:00:30]} 15. Rfc1 {[%emt 0:01:51]} a6 {[%emt 0:00:55]} 16. Na2 {[%emt 0:01:18]} Qb6 {[%emt 0:02:05]} 17. Nb4 {[%emt 0:01:17]} Qb7 {[%emt 0:03:28]} 18. Rc5 {[%emt 0:01:04]} Rfd8 {[%emt 0:01:51]} 19. Rac1 {[%emt 0:00:27]} Rbc8 {[%emt 0:00:09]} 20. h3 {[%emt 0:11:42]} Kg7 {[%emt 0:04:00]} 21. R1c3 {[%emt 0:02:47]} Rxc5 {[%emt 0:01:26]} 22. Rxc5 {[%emt 0:00:03]} Rc8 {[%emt 0:01:28]} 23. Qc3 {[%emt 0:00:03]} Rxc5 {[%emt 0:00:38]} 24. Qxc5 {[%emt 0:00:11]} a5 {[%emt 0:00:58]} 25. Nd3 {[%emt 0:00:54]} g5 {[%emt 0:00:47]} 26. Qd6 {[%emt 0:00:46]} Nf5 {[%emt 0:04:39]} 27. Qd8 {[%emt 0:00:02]} Nh4 {[%emt 0:00:39]} 28. Be2 {[%emt 0:00:32]} ({Stronger than} 28. Qxa5 Nxf3+ 29. gxf3 Bxh3 $11) 28... Qd7 {[%emt 0:06:39]} (28... b4 $142) 29. Qxd7 {[%emt 0:00:25]} (29. Qxa5 $142 Bf5 30. Nc5) 29... Bxd7 {[%emt 0:00:09]} 30. Nc5 {[%emt 0:00:21]} Bc6 {[%emt 0:01:21]} 31. Bd3 {[%emt 0:01:51]} f5 {[%emt 0:04:00]} 32. Na6 {[%emt 0:00:15]} Kf6 {[%emt 0:00:22]} 33. Nc7 {[%emt 0:00:04]} b4 {[%emt 0:00:16]} 34. axb4 {[%emt 0:00:05]} axb4 {[%emt 0:00:10]} 35. Na6 {[%emt 0:00:08]} b3 {[%emt 0:00:41]} 36. Nc5 {[%emt 0:00:03]} h5 {[%emt 0:02:07]} 37. Nxb3 {[%emt 0:00:11]} Ke7 {[%emt 0:00:41]} 38. Nc5 {[%emt 0:00:04]} Kd6 {[%emt 0:01:02]} 39. Kf1 {[%emt 0:00:28]} f4 {[%emt 0:00:40]} 40. b4 {[%emt 0:00:27]} Kc7 {[%emt 0:31:34]} 41. b5 {[%emt 0:44:48]} Be8 {[%emt 0:01:04]} 42. Na4 {[%emt 0:01:25]} Kb7 {[%emt 0:00:07]} 43. Nc3 {[%emt 0:00:08]} f3 {[%emt 0:01:16]} 44. g3 {[%emt 0:02:24]} Ng2 {[%emt 0:01:36]} 45. Nxd5 {[%emt 0:05:14]} Bd7 {[%emt 0:00:40]} 46. Kg1 {[%emt 0:00:08]} Bxh3 {[%emt 0:00:42]} 47. Be4 {[%emt 0:00:02]} f5 {[%emt 0:04:22]} 48. Nf4+ {[%emt 0:04:37]} fxe4 {[%emt 0:00:15]} 49. Nxh3 {[%emt 0:00:02]} h4 {[%emt 0:00:31]} 50. g4 {[%emt 0:00:02]} Kb6 {[%emt 0:02:25]} 51. Nxg5 {[%emt 0:00:09]} Kxb5 {[%emt 0:00:08]} 52. Nxe4 {[%emt 0:00:13]} h3 {[%emt 0:02:54]} 53. Kh2 {[%emt 0:00:38]} Kc4 {[%emt 0:00:38]} 54. Nd2+ {[%emt 0:01:06]} Kd3 {[%emt 0:01:35]} 55. Nxf3 {[%emt 0:00:04]} Ke2 {[%emt 0:00:19]} 56. Kg3 {[%emt 0:00:04]} Kf1 {[%emt 0:01:20]} 57. g5 {[%emt 0:00:18]} h2 {[%emt 0:01:28]} 58. Nxh2+ {[%emt 0:00:04]} Kg1 {[%emt 0:00:10]} 59. g6 {[%emt 0:00:19]} 1-0

[Event "21st Alekhine FIDE 2017"]
[Site "Voronezh"]
[Date "2017.06.19"]
[Round "8"]
[White "Egorov, Alexey"]
[Black "Kazmin, Semen"]
[Result "0-1"]
[ECO "C11"]
[WhiteElo "1794"]
[BlackElo "2086"]
[Annotator "NA RC"]
[PlyCount "112"]
[EventDate "2017.??.??"]
[EventType "swiss"]
[EventCountry "RUS"]
[SourceTitle "playchess.com"]
[Source "ChessBase"]
[SourceQuality "1"]
[TimeControl "40/5400+30:1800+30"]

{[%evp 9,112,-30,0,-26,-20,-24,-4,-27,-23,-16,-17,-29,-29,-44,-14,-27,-6,-29,6,-60,-29,-55,-56,-64,-46,-81,-62,-76,0,-20,-30,-10,100,42,63,82,83,13,29,-29,0,-21,0,0,95,-11,65,-15,28,-16,9,-47,-33,-114,-108,-109,-43,-44,32767,32767,32767,32767,32767,32767,32767,32767,-66,32767,32767,32767,32767,32767,32767,-533,-542,-557,-623,32767,32767,32767,-543,32767,32767,-557,-588,-576,-568,-758,-785,-887,-919,-980,-758,-891,-847,32767,32767,32767,32767,32767,-754,-902,32767,-979,-1933]} 1. e4 e6 2. Nc3 d5 3. Nf3 Nf6 4. e5 Nfd7 5. d4 c5 6. Bf4 Nc6 7. dxc5 Nxc5 8. Bd3 Be7 9. O-O O-O {LiveBook: 9 Games} 10. Ne2 {C11: French: Classical System: 4 e5 and 4 Bg5 dxe4} (10. Re1 a6 11. a3 f5 12. exf6 Bxf6 13. Bg3 Qb6 14. Rb1 Nxd3 15. Qxd3 Nd4 16. Ne5 Nf5 17. Bf4 Qd4 18. Qxd4 Nxd4 {½-½ (54) Chandler,M (2544)-Efimenko,Z (2601) West Bromwich 2005}) 10... f5 11. Qd2 $146 ({Predecessor:} 11. Nfd4 Qc7 12. Nxc6 bxc6 13. Nd4 Bd7 14. Re1 Rab8 15. Rb1 Nxd3 16. Qxd3 c5 17. Nf3 h6 {0-1 (41) Mosionzhik,I-Pavlenko,Y Batumi 1961}) 11... h6 (11... Ne4 $17 12. Qc1 h6) 12. Be3 Ne4 13. Qc1 Qc7 14. Bd4 ({White should play} 14. c4 $11) 14... Bd7 15. c3 Be8 16. Nf4 Qd7 17. Bb5 g5 18. Nd3 g4 ({Black should play} 18... Qc7 $17 19. Rd1 f4) 19. Bxc6 bxc6 20. Nfe1 h5 (20... c5 $11 {keeps the balance.} 21. Be3 c4) 21. Be3 ({White should try} 21. f3 $16) 21... Qd8 22. Nf4 Bf7 23. Nc2 ({White should play} 23. Ned3 $16) 23... c5 24. Kh1 (24. f3 $142) 24... Rc8 25. f3 Ng5 26. Qd2 Kg7 {[#]} (26... a5 $11 {remains equal.}) 27. Rg1 (27. b4 $1 $16) 27... Rh8 (27... Kh8 $11) 28. Ne1 ({White should play} 28. b4 $16) 28... Nh7 29. Rd1 Nf8 30. Ne2 Ng6 31. f4 (31. Nd3 $15) 31... a5 32. Nd3 Be8 (32... Qb6 $17) 33. b4 $1 axb4 34. cxb4 cxb4 35. Nd4 Kf7 36. Nxb4 Rc4 37. Rb1 Qa5 38. Nbc2 Qxd2 39. Bxd2 Ba4 40. Rgc1 Rhc8 41. Ne3 (41. Ne1 $142 Rxd4 42. Rxc8 Rxd2 43. g3) 41... Rxd4 42. Rxc8 Rxd2 43. g3 Re2 44. Ng2 d4 45. Rc4 Rxa2 46. Ne1 {[#]} d3 $1 47. Nxd3 Bc2 48. Nb4 Bxb1 49. Nxa2 Bxa2 50. Rc7 Ke8 51. Kg1 Kd8 52. Rc2 Bb3 53. Rc3 Bd5 54. Kf2 Nf8 55. Ke3 Nd7 56. Kd4 {[#]} Bc5+ $19 0-1

[Event "21st Alekhine FIDE 2017"]
[Site "Voronezh"]
[Date "2017.06.20"]
[Round "9"]
[White "Khajrutdinov, Ildar"]
[Black "Garafutdinov, Ainur"]
[Result "1-0"]
[ECO "A81"]
[WhiteElo "2087"]
[BlackElo "1998"]
[Annotator "NA RC"]
[PlyCount "41"]
[EventDate "2017.??.??"]
[EventType "swiss"]
[EventCountry "RUS"]
[SourceTitle "playchess.com"]
[Source "ChessBase"]
[SourceQuality "1"]
[TimeControl "40/5400+30:1800+30"]

{[%evp 8,20,53,62,58,38,52,53,77,62,47,45,68,45,97]} 1. d4 {[%emt 0:06:50]} f5 {[%emt 0:00:04]} 2. g3 {[%emt 0:00:37]} Nf6 {[%emt 0:00:06]} 3. Bg2 {[%emt 0:00:09]} d6 {[%emt 0:00:03]} 4. Nc3 {[%emt 0:00:41]} g6 {[%emt 0:00:17]} 5. e4 {[%emt 0:00:43] LiveBook: 10 Games} fxe4 {[%emt 0:00:55]} 6. Nxe4 {[%emt 0:00:06]} Nxe4 {[%emt 0:01:15]} 7. Bxe4 {[%emt 0:00:09]} Nd7 {[%emt 0:02:46]} 8. Nf3 {[%emt 0:09:22]} Nf6 {[%emt 0:01:38]} 9. Bd3 {[%emt 0:00:13]} c6 {[%emt 0:06:58]} 10. c3 {[%emt 0:09:44]} Qb6 $16 {[%emt 0:05:54]} 11. Ng5 {[%emt 0:07:40]} Rg8 {[%emt 0:19:16]} 12. Qe2 {[%emt 0:02:38]} Qc7 {[%emt 0:10:47]} 13. Bd2 {[%emt 0:14:02]} Bd7 {[%emt 0:05:44]} 14. O-O-O {[%emt 0:03:08]} O-O-O {[%emt 0:01:15]} 15. Bc4 {[%emt 0:12:50]} d5 {[%emt 0:02:53]} 16. Bd3 {[%emt 0:02:15]} b5 {[%emt 0:13:55]} 17. Bf4 {[%emt 0:03:34]} Qb7 {[%emt 0:00:50]} 18. f3 {[%emt 0:05:51]} Re8 {[%emt 0:09:00]} 19. g4 {[%emt 0:03:15]} Bh6 {[%emt 0:06:29]} 20. h4 {[%emt 0:01:24]} Rgf8 {[%emt 0:00:32]} 21. Bg3 {[%emt 0:02:01]} 1-0

[Event "21st Alekhine FIDE 2017"]
[Site "Voronezh"]
[Date "2017.06.20"]
[Round "9"]
[White "Geranichev, Mikhail"]
[Black "Nakonechny, Ignat"]
[Result "0-1"]
[ECO "A05"]
[WhiteElo "2076"]
[BlackElo "1893"]
[Annotator "NA RC"]
[PlyCount "35"]
[EventDate "2017.??.??"]
[EventType "swiss"]
[EventCountry "RUS"]
[SourceTitle "playchess.com"]
[Source "ChessBase"]
[SourceQuality "1"]
[TimeControl "40/5400+30:1800+30"]

{[%evp 8,35,5,32767,32767,32767,32767,11,16,-19,-8,-19,-14,-14,0,0,7,-3,-3,-21,-33,-45,-20,-68,-50,-43,-44,-53,-37,-65]} 1. Nf3 {[%emt 0:02:19]} Nf6 {[%emt 0:01:10]} 2. g3 {[%emt 0:00:45]} g6 {[%emt 0:00:04]} 3. Bg2 {[%emt 0:00:14]} Bg7 {[%emt 0:00:08]} 4. d3 {[%emt 0:00:09]} d6 {[%emt 0:00:04]} 5. O-O {[%emt 0:00:06]} O-O {[%emt 0:00:04]} 6. e4 {[%emt 0:00:05]} c6 {[%emt 0:00:02]} 7. Nbd2 {[%emt 0:00:07]} e5 {[%emt 0:00:19]} 8. Nc4 {[%emt 0:00:40]} Qc7 {[%emt 0:00:54]} (8... b5 $5 {[%cal Rb5c4]} 9. Ne3 c5 $11) 9. b3 {[%emt 0:01:53]} b5 {[%emt 0:00:26]} 10. Ne3 {[%emt 0:00:21]} Bb7 {[%emt 0:00:11]} 11. a4 {[%emt 0:00:28]} a6 {[%emt 0:01:27]} 12. Bb2 {[%emt 0:00:40]} Nbd7 {[%emt 0:00:19]} 13. Nh4 {[%emt 0:02:24]} d5 {[%emt 0:08:30]} 14. Qe2 {[%emt 0:04:26]} Rfe8 {[%emt 0:03:00]} (14... d4 $5 {[%cal Rd4e3]} 15. Ng4 Nxg4 16. Qxg4 c5 $15) 15. a5 {[%emt 0:09:03]} (15. axb5 $11 axb5 16. exd5) 15... d4 {[%emt 0:06:06]} 16. Ng4 {[%emt 0:02:08]} Nxg4 {[%emt 0:00:22]} 17. Qxg4 {[%emt 0:00:09]} c5 {[%emt 0:00:26]} 18. f4 $15 {[%emt 0:02:29]} 0-1

[Event "21st Alekhine FIDE 2017"]
[Site "Voronezh"]
[Date "2017.06.20"]
[Round "9"]
[White "Novikov, Sergey D"]
[Black "Mezhov, Dmitriy"]
[Result "1-0"]
[ECO "D45"]
[WhiteElo "2061"]
[BlackElo "1809"]
[Annotator "NA RC"]
[PlyCount "28"]
[EventDate "2017.??.??"]
[EventType "swiss"]
[EventCountry "RUS"]
[SourceTitle "playchess.com"]
[Source "ChessBase"]
[SourceQuality "1"]
[TimeControl "40/5400+30:1800+30"]

{[%evp 8,28,29,12,16,2,10,21,20,31,21,17,19,-6,3,-48,-27,-63,-22,-45,-26,-25,-31]} 1. d4 {[%emt 0:00:00]} d5 {[%emt 0:00:03]} 2. c4 {[%emt 0:00:00]} c6 {[%emt 0:00:04]} 3. Nf3 {[%emt 0:00:00]} Nf6 {[%emt 0:00:04]} 4. Nc3 {[%emt 0:00:00]} e6 {[%emt 0:00:04]} 5. e3 {[%emt 0:00:02]} Nbd7 {[%emt 0:00:03]} 6. Qc2 {[%emt 0:00:04]} b6 {[%emt 0:00:03]} 7. Bd3 {[%emt 0:00:12]} Bb7 {[%emt 0:00:05]} 8. O-O {[%emt 0:00:10]} Be7 {[%emt 0:00:19]} 9. b3 {[%emt 0:08:19]} dxc4 {LiveBook: 27 Games} 10. Bxc4 c5 {[%emt 0:09:47]} 11. e4 {[%emt 0:10:10]} cxd4 {[%emt 0:01:27]} 12. Nxd4 {[%emt 0:00:45]} O-O {[%emt 0:00:06]} 13. Rd1 {[%emt 0:01:46]} Qc7 {[%emt 0:03:52]} 14. Qe2 {[%emt 0:14:00]} a6 $15 {[%emt 0:00:58]} 1-0

[Event "21st Alekhine FIDE 2017"]
[Site "Voronezh"]
[Date "2017.06.20"]
[Round "9"]
[White "Kondaurov, Yury"]
[Black "Katkov, Vitaly"]
[Result "1-0"]
[ECO "A04"]
[WhiteElo "2046"]
[BlackElo "2054"]
[Annotator "NA RC"]
[PlyCount "21"]
[EventDate "2017.??.??"]
[EventType "swiss"]
[EventCountry "RUS"]
[SourceTitle "playchess.com"]
[Source "ChessBase"]
[SourceQuality "1"]
[TimeControl "40/5400+30:1800+30"]

{[%evp 10,21,32,13,44,19,15,-4,17,-5,16,-44,-43,-58]} 1. Nf3 {[%emt 0:00:00]} c5 {[%emt 0:05:03]} 2. g3 {[%emt 0:00:00]} Nc6 {[%emt 0:00:13]} 3. Bg2 {[%emt 0:00:00]} g6 {[%emt 0:00:05]} 4. O-O {[%emt 0:00:00]} Bg7 {[%emt 0:00:05]} 5. c4 {[%emt 0:00:00]} Nf6 {[%emt 0:01:54]} 6. Nc3 {[%emt 0:05:34]} d5 {[%emt 0:03:37] LiveBook: 26 Games} 7. cxd5 {[%emt 0:05:01]} Nxd5 {[%emt 0:01:55]} 8. Qb3 {[%emt 0:03:25]} (8. d4 $5) 8... Nc7 {[%emt 0:03:33]} 9. Ng5 {[%emt 0:02:17]} O-O $1 {[%emt 0:00:17]} 10. d3 {[%emt 0:05:14]} (10. Bxc6 $5 bxc6 11. d3 $11) 10... Bd7 {[%emt 0:06:14]} 11. Be3 $15 {[%emt 0:08:29]} 1-0